[Event "Titled Tuesday Blitz September 27 Early 2022"]
[White "Kalajzic, Ivan"]
[Black "Song, Julien"]
[WhiteFideId "14506378"]
[BlackFideId "659487"]
[WhiteElo "2163"]
[BlackElo "2225"]
[Result "0-1"]
[Round "04"]
[TimeControl "180+1"]
[Date "2022.09.27"]
[WhiteClock "0:00:19"]
[BlackClock "0:00:09"]

1. b3 {[%clk 0:03:00]}  e5 {[%clk 0:02:58]} 2. Bb2 {[%clk 0:03:01]}  Nc6 {[%clk 0:02:58]} 3. e3 {[%clk 0:03:01]}  Nf6 {[%clk 0:02:59]} 4. Bb5 {[%clk 0:03:01]}  e4 {[%clk 0:02:58]} 5. f3 {[%clk 0:03:00]}  a6 {[%clk 0:02:53]} 6. Bxc6 {[%clk 0:02:59]}  dxc6 {[%clk 0:02:54]} 7. Nc3 {[%clk 0:02:59]}  Bf5 {[%clk 0:02:50]} 8. fxe4 {[%clk 0:02:56]}  Nxe4 {[%clk 0:02:49]} 9. Nf3 {[%clk 0:02:57]}  f6 {[%clk 0:02:36]} 10. Nd4 {[%clk 0:02:49]}  Nxc3 {[%clk 0:02:29]} 11. Bxc3 {[%clk 0:02:47]}  Bg6 {[%clk 0:02:30]} 12. O-O {[%clk 0:02:37]}  Qd7 {[%clk 0:02:30]} 13. d3 {[%clk 0:02:10]}  O-O-O {[%clk 0:02:30]} 14. Qf3 {[%clk 0:02:10]}  Bc5 {[%clk 0:02:21]} 15. Rae1 {[%clk 0:02:07]}  Rhe8 {[%clk 0:02:20]} 16. Kh1 {[%clk 0:01:55]}  Re7 {[%clk 0:02:18]} 17. Re2 {[%clk 0:01:38]}  Rde8 {[%clk 0:02:17]} 18. Rfe1 {[%clk 0:01:38]}  Qd5 {[%clk 0:02:10]} 19. Qxd5 {[%clk 0:01:37]}  cxd5 {[%clk 0:02:10]} 20. Nf3 {[%clk 0:01:32]}  Rxe3 {[%clk 0:02:06]} 21. Rxe3 {[%clk 0:01:29]}  Rxe3 {[%clk 0:02:07]} 22. Rxe3 {[%clk 0:01:28]}  Bxe3 {[%clk 0:02:08]} 23. Bd4 {[%clk 0:01:27]}  Bxd4 {[%clk 0:01:55]} 24. Nxd4 {[%clk 0:01:28]}  c5 {[%clk 0:01:54]} 25. Ne6 {[%clk 0:01:27]}  Kd7 {[%clk 0:01:52]} 26. Nxc5+ {[%clk 0:01:27]}  Kc6 {[%clk 0:01:53]} 27. b4 {[%clk 0:01:25]}  b6 {[%clk 0:01:45]} 28. Nxa6 {[%clk 0:01:23]}  Kb5 {[%clk 0:01:37]} 29. Nc7+ {[%clk 0:01:23]}  Kxb4 {[%clk 0:01:24]} 30. Nxd5+ {[%clk 0:01:22]}  Kc5 {[%clk 0:01:21]} 31. Nf4 {[%clk 0:01:13]}  Bf7 {[%clk 0:01:19]} 32. a3 {[%clk 0:01:12]}  Kb5 {[%clk 0:01:11]} 33. c4+ {[%clk 0:01:10]}  Kc5 {[%clk 0:01:04]} 34. Ne2 {[%clk 0:01:07]}  Bg6 {[%clk 0:01:01]} 35. Nf4 {[%clk 0:01:02]}  Kd4 {[%clk 0:00:56]} 36. a4 {[%clk 0:00:57]}  Bxd3 {[%clk 0:00:44]} 37. Ne6+ {[%clk 0:00:41]}  Kxc4 {[%clk 0:00:43]} 38. Nxg7 {[%clk 0:00:41]}  Kb4 {[%clk 0:00:20]} 39. Nh5 {[%clk 0:00:35]}  f5 {[%clk 0:00:10]} 40. Nf4 {[%clk 0:00:35]}  Be4 {[%clk 0:00:10]} 41. Kg1 {[%clk 0:00:29]}  Kxa4 {[%clk 0:00:10]} 42. Kf2 {[%clk 0:00:27]}  b5 {[%clk 0:00:09]} 43. Ke3 {[%clk 0:00:27]}  b4 {[%clk 0:00:09]} 44. Kd2 {[%clk 0:00:25]}  b3 {[%clk 0:00:08]} 45. Kc1 {[%clk 0:00:25]}  Ka3 {[%clk 0:00:09]} 46. Ne2 {[%clk 0:00:18]}  b2+ {[%clk 0:00:09]} 47. Kd2 {[%clk 0:00:18]}  b1=Q {[%clk 0:00:10]} 48. Nc3 {[%clk 0:00:19]}  Qb2+ {[%clk 0:00:09]} 0-1


[Site "https://www.chess.com"]

[Event "Titled Tuesday Blitz September 27 Early 2022"]
[White "Kamsky, Gata"]
[Black "Rosen, Eric"]
[WhiteFideId "2000024"]
[BlackFideId "2032562"]
[WhiteElo "2666"]
[BlackElo "2362"]
[Result "1-0"]
[Round "04"]
[TimeControl "180+1"]
[Date "2022.09.27"]
[WhiteClock "0:00:22"]
[BlackClock "0:00:01"]

1. e4 {[%clk 0:03:00]}  c5 {[%clk 0:02:57]} 2. Nc3 {[%clk 0:02:53]}  Nc6 {[%clk 0:02:55]} 3. Bc4 {[%clk 0:02:52]}  e6 {[%clk 0:02:55]} 4. Nf3 {[%clk 0:02:50]}  a6 {[%clk 0:02:53]} 5. a3 {[%clk 0:02:50]}  Nf6 {[%clk 0:02:50]} 6. Ba2 {[%clk 0:02:50]}  Be7 {[%clk 0:02:47]} 7. O-O {[%clk 0:02:49]}  O-O {[%clk 0:02:47]} 8. d3 {[%clk 0:02:49]}  Qc7 {[%clk 0:02:41]} 9. Re1 {[%clk 0:02:46]}  d6 {[%clk 0:02:38]} 10. Ne2 {[%clk 0:02:45]}  b5 {[%clk 0:02:35]} 11. Ng3 {[%clk 0:02:43]}  Re8 {[%clk 0:02:34]} 12. c3 {[%clk 0:02:40]}  Bb7 {[%clk 0:02:34]} 13. d4 {[%clk 0:02:40]}  Na5 {[%clk 0:02:14]} 14. e5 {[%clk 0:02:15]}  dxe5 {[%clk 0:02:03]} 15. dxe5 {[%clk 0:02:14]}  Rad8 {[%clk 0:01:59]} 16. Qe2 {[%clk 0:02:14]}  Nd5 {[%clk 0:01:52]} 17. Bd2 {[%clk 0:01:59]}  Bf8 {[%clk 0:01:46]} 18. Rad1 {[%clk 0:01:55]}  Ne7 {[%clk 0:01:38]} 19. h4 {[%clk 0:01:39]}  c4 {[%clk 0:01:28]} 20. Bb1 {[%clk 0:01:35]}  h6 {[%clk 0:01:19]} 21. Nh5 {[%clk 0:01:31]}  Nf5 {[%clk 0:01:07]} 22. Bf4 {[%clk 0:01:01]}  Rxd1 {[%clk 0:01:01]} 23. Rxd1 {[%clk 0:01:00]}  Rd8 {[%clk 0:01:02]} 24. Bxf5 {[%clk 0:00:54]}  exf5 {[%clk 0:00:55]} 25. Nd4 {[%clk 0:00:43]}  Be4 {[%clk 0:00:30]} 26. Ng3 {[%clk 0:00:35]}  Bd3 {[%clk 0:00:29]} 27. Qf3 {[%clk 0:00:34]}  Qd7 {[%clk 0:00:25]} 28. Ndxf5 {[%clk 0:00:32]}  Qc6 {[%clk 0:00:14]} 29. Qg4 {[%clk 0:00:28]}  Qg6 {[%clk 0:00:13]} 30. Qxg6 {[%clk 0:00:28]}  fxg6 {[%clk 0:00:14]} 31. Nd6 {[%clk 0:00:28]}  Bxd6 {[%clk 0:00:12]} 32. exd6 {[%clk 0:00:28]}  Nb7 {[%clk 0:00:13]} 33. Re1 {[%clk 0:00:27]}  Nxd6 {[%clk 0:00:12]} 34. Re6 {[%clk 0:00:27]}  Nf5 {[%clk 0:00:04]} 35. Nxf5 {[%clk 0:00:27]}  Bxf5 {[%clk 0:00:04]} 36. Rxa6 {[%clk 0:00:27]}  Rd5 {[%clk 0:00:04]} 37. Be3 {[%clk 0:00:27]}  Bc2 {[%clk 0:00:03]} 38. Bd4 {[%clk 0:00:26]}  Rd7 {[%clk 0:00:03]} 39. f3 {[%clk 0:00:27]}  Ba4 {[%clk 0:00:03]} 40. Kf2 {[%clk 0:00:26]}  Kh7 {[%clk 0:00:04]} 41. Kg3 {[%clk 0:00:27]}  Rf7 {[%clk 0:00:04]} 42. Rd6 {[%clk 0:00:26]}  Rb7 {[%clk 0:00:04]} 43. Kf4 {[%clk 0:00:26]}  Rf7+ {[%clk 0:00:05]} 44. Ke5 {[%clk 0:00:26]}  Rf5+ {[%clk 0:00:04]} 45. Ke6 {[%clk 0:00:24]}  Bc2 {[%clk 0:00:01]} 46. Rd7 {[%clk 0:00:25]}  Kg8 {[%clk 0:00:01]} 47. Rxg7+ {[%clk 0:00:24]}  Kf8 {[%clk 0:00:02]} 48. Rxg6 {[%clk 0:00:23]}  Rxf3 {[%clk 0:00:01]} 49. Bc5+ {[%clk 0:00:22]}  Ke8 {[%clk 0:00:01]} 50. Rg8+ {[%clk 0:00:22]}  Rf8 {[%clk 0:00:01]} 51. Rxf8# {[%clk 0:00:22]} 1-0


[Site "https://www.chess.com"]

[Event "Titled Tuesday Blitz September 27 Early 2022"]
[White "Kodinets, Konstantin L."]
[Black "Ronka, Erik"]
[WhiteFideId "4122011"]
[BlackFideId "505080"]
[WhiteElo "2447"]
[BlackElo "2264"]
[Result "1-0"]
[Round "04"]
[TimeControl "180+1"]
[Date "2022.09.27"]
[WhiteClock "0:00:43"]
[BlackClock "0:00:30"]

1. d4 {[%clk 0:03:00]}  d5 {[%clk 0:02:57]} 2. Nf3 {[%clk 0:03:01]}  Nf6 {[%clk 0:02:57]} 3. Bf4 {[%clk 0:03:01]}  c5 {[%clk 0:02:57]} 4. e3 {[%clk 0:03:01]}  cxd4 {[%clk 0:02:58]} 5. exd4 {[%clk 0:03:01]}  Nc6 {[%clk 0:02:59]} 6. c3 {[%clk 0:03:01]}  Bf5 {[%clk 0:02:56]} 7. Nbd2 {[%clk 0:03:00]}  e6 {[%clk 0:02:56]} 8. Qb3 {[%clk 0:03:01]}  Qc8 {[%clk 0:02:49]} 9. h3 {[%clk 0:03:00]}  h6 {[%clk 0:02:48]} 10. Be2 {[%clk 0:03:01]}  Be7 {[%clk 0:02:48]} 11. O-O {[%clk 0:03:01]}  O-O {[%clk 0:02:48]} 12. a4 {[%clk 0:03:02]}  Qd7 {[%clk 0:02:38]} 13. Ne5 {[%clk 0:03:00]}  Nxe5 {[%clk 0:02:38]} 14. Bxe5 {[%clk 0:03:01]}  a6 {[%clk 0:02:35]} 15. a5 {[%clk 0:03:00]}  Qc6 {[%clk 0:02:34]} 16. Rfe1 {[%clk 0:02:50]}  Nd7 {[%clk 0:02:33]} 17. Bf4 {[%clk 0:02:48]}  Bd6 {[%clk 0:02:18]} 18. Bxd6 {[%clk 0:02:47]}  Qxd6 {[%clk 0:02:19]} 19. Qa3 {[%clk 0:02:43]}  Qc6 {[%clk 0:01:51]} 20. Rec1 {[%clk 0:02:39]}  Rfc8 {[%clk 0:01:50]} 21. b4 {[%clk 0:02:38]}  Nf6 {[%clk 0:01:48]} 22. Nb3 {[%clk 0:02:37]}  Ne4 {[%clk 0:01:38]} 23. Nc5 {[%clk 0:02:36]}  e5 {[%clk 0:01:33]} 24. Qb2 {[%clk 0:02:05]}  f6 {[%clk 0:01:23]} 25. Bf3 {[%clk 0:01:52]}  Rab8 {[%clk 0:01:19]} 26. Bxe4 {[%clk 0:01:46]}  dxe4 {[%clk 0:01:18]} 27. dxe5 {[%clk 0:01:46]}  b6 {[%clk 0:01:12]} 28. axb6 {[%clk 0:01:43]}  Rxb6 {[%clk 0:01:13]} 29. Qe2 {[%clk 0:01:42]}  fxe5 {[%clk 0:01:08]} 30. Rxa6 {[%clk 0:01:40]}  e3 {[%clk 0:01:00]} 31. Rxb6 {[%clk 0:01:38]}  Qxb6 {[%clk 0:00:58]} 32. Qxe3 {[%clk 0:01:38]}  e4 {[%clk 0:00:56]} 33. Re1 {[%clk 0:01:29]}  Qf6 {[%clk 0:00:54]} 34. Qg3 {[%clk 0:01:20]}  Kh7 {[%clk 0:00:51]} 35. Re3 {[%clk 0:01:18]}  Rd8 {[%clk 0:00:51]} 36. Nxe4 {[%clk 0:01:09]}  Rd1+ {[%clk 0:00:50]} 37. Kh2 {[%clk 0:01:09]}  Qa6 {[%clk 0:00:51]} 38. Qf3 {[%clk 0:01:01]}  Rd5 {[%clk 0:00:35]} 39. Ng3 {[%clk 0:00:43]}  Be6 {[%clk 0:00:30]} 40. Qe4+ {[%clk 0:00:43]} 1-0


[Site "https://www.chess.com"]

[Event "Titled Tuesday Blitz September 27 Early 2022"]
[White "Kosakowski, Jakub"]
[Black "Machidon, Cristi"]
[WhiteFideId "1185080"]
[BlackFideId "13904590"]
[WhiteElo "2453"]
[BlackElo "2312"]
[Result "1-0"]
[Round "04"]
[TimeControl "180+1"]
[Date "2022.09.27"]
[WhiteClock "0:01:21"]
[BlackClock "0:00:10"]

1. c4 {[%clk 0:02:56]}  c6 {[%clk 0:02:57]} 2. d4 {[%clk 0:02:55]}  d5 {[%clk 0:02:58]} 3. Nf3 {[%clk 0:02:50]}  Nf6 {[%clk 0:02:58]} 4. Nbd2 {[%clk 0:02:49]}  g6 {[%clk 0:02:47]} 5. e3 {[%clk 0:02:47]}  Bg7 {[%clk 0:02:48]} 6. b3 {[%clk 0:02:47]}  O-O {[%clk 0:02:48]} 7. Bb2 {[%clk 0:02:48]}  Bf5 {[%clk 0:02:47]} 8. Be2 {[%clk 0:02:46]}  a5 {[%clk 0:02:47]} 9. O-O {[%clk 0:02:46]}  Ne4 {[%clk 0:02:47]} 10. cxd5 {[%clk 0:02:36]}  cxd5 {[%clk 0:02:43]} 11. Nxe4 {[%clk 0:02:36]}  Bxe4 {[%clk 0:02:43]} 12. Ne5 {[%clk 0:02:34]}  Nd7 {[%clk 0:02:23]} 13. Rc1 {[%clk 0:02:24]}  Nxe5 {[%clk 0:01:20]} 14. dxe5 {[%clk 0:02:22]}  Rc8 {[%clk 0:01:20]} 15. Qd4 {[%clk 0:02:15]}  Qd7 {[%clk 0:01:01]} 16. e6 {[%clk 0:01:43]}  Bxd4 {[%clk 0:00:57]} 17. exd7 {[%clk 0:01:44]}  Rxc1 {[%clk 0:00:57]} 18. Rxc1 {[%clk 0:01:45]}  Bb6 {[%clk 0:00:51]} 19. g4 {[%clk 0:01:27]}  f6 {[%clk 0:00:16]} 20. Bd4 {[%clk 0:01:22]}  Bd8 {[%clk 0:00:12]} 21. f3 {[%clk 0:01:21]}  e5 {[%clk 0:00:10]} 22. Bc5 {[%clk 0:01:21]} 1-0


[Site "https://www.chess.com"]

[Event "Titled Tuesday Blitz September 27 Early 2022"]
[White "Kukreja, Sankalp"]
[Black "Rottenwohrer Suarez, Juan"]
[WhiteFideId "45027676"]
[BlackFideId "32068182"]
[WhiteElo "2004"]
[BlackElo "2132"]
[Result "1/2-1/2"]
[Round "04"]
[TimeControl "180+1"]
[Date "2022.09.27"]
[WhiteClock "0:00:16"]
[BlackClock "0:00:05"]

1. e4 {[%clk 0:03:00]}  c5 {[%clk 0:02:44]} 2. Nf3 {[%clk 0:03:00]}  g6 {[%clk 0:02:45]} 3. d4 {[%clk 0:02:59]}  cxd4 {[%clk 0:02:46]} 4. Nxd4 {[%clk 0:03:00]}  Nc6 {[%clk 0:02:46]} 5. c4 {[%clk 0:03:00]}  Nf6 {[%clk 0:02:46]} 6. Nc3 {[%clk 0:03:00]}  d6 {[%clk 0:02:46]} 7. Be3 {[%clk 0:03:00]}  Ng4 {[%clk 0:02:46]} 8. Nxc6 {[%clk 0:02:57]}  bxc6 {[%clk 0:02:06]} 9. Bf4 {[%clk 0:02:57]}  Bg7 {[%clk 0:01:21]} 10. c5 {[%clk 0:01:56]}  Rb8 {[%clk 0:01:13]} 11. Qc2 {[%clk 0:01:12]}  Qa5 {[%clk 0:01:10]} 12. Rc1 {[%clk 0:00:15]}  Qxc5 {[%clk 0:01:09]} 13. h3 {[%clk 0:00:14]}  Ne5 {[%clk 0:01:08]} 14. Be3 {[%clk 0:00:13]}  Qa5 {[%clk 0:01:08]} 15. Be2 {[%clk 0:00:12]}  O-O {[%clk 0:01:06]} 16. O-O {[%clk 0:00:11]}  Ba6 {[%clk 0:01:01]} 17. f4 {[%clk 0:00:10]}  Nc4 {[%clk 0:00:56]} 18. Bxc4 {[%clk 0:00:07]}  Bxc4 {[%clk 0:00:57]} 19. Rf2 {[%clk 0:00:06]}  Rb7 {[%clk 0:00:40]} 20. f5 {[%clk 0:00:07]}  Rfb8 {[%clk 0:00:19]} 21. b3 {[%clk 0:00:07]}  Ba6 {[%clk 0:00:15]} 22. Bd2 {[%clk 0:00:07]}  Qc5 {[%clk 0:00:10]} 23. Ne2 {[%clk 0:00:07]}  Qxc2 {[%clk 0:00:08]} 24. Rxc2 {[%clk 0:00:08]}  c5 {[%clk 0:00:05]} 25. Bc3 {[%clk 0:00:08]}  Bd3 {[%clk 0:00:04]} 26. Rd2 {[%clk 0:00:07]}  Bxe2 {[%clk 0:00:04]} 27. Bxg7 {[%clk 0:00:07]}  Kxg7 {[%clk 0:00:04]} 28. f6+ {[%clk 0:00:08]}  exf6 {[%clk 0:00:04]} 29. Rfxe2 {[%clk 0:00:08]}  Rd7 {[%clk 0:00:03]} 30. Rd5 {[%clk 0:00:09]}  Re8 {[%clk 0:00:02]} 31. Kf2 {[%clk 0:00:09]}  Rde7 {[%clk 0:00:02]} 32. Kf3 {[%clk 0:00:09]}  Re6 {[%clk 0:00:01]} 33. Red2 {[%clk 0:00:09]}  f5 {[%clk 0:00:02]} 34. exf5 {[%clk 0:00:09]}  Re3+ {[%clk 0:00:01]} 35. Kf2 {[%clk 0:00:10]}  gxf5 {[%clk 0:00:02]} 36. Rxd6 {[%clk 0:00:10]}  Rc3 {[%clk 0:00:02]} 37. R6d3 {[%clk 0:00:10]}  Rxd3 {[%clk 0:00:02]} 38. Rxd3 {[%clk 0:00:11]}  Rc8 {[%clk 0:00:02]} 39. Rc3 {[%clk 0:00:12]}  Kf6 {[%clk 0:00:02]} 40. Rc4 {[%clk 0:00:12]}  Ke5 {[%clk 0:00:02]} 41. Kf3 {[%clk 0:00:13]}  Kd5 {[%clk 0:00:02]} 42. Rf4 {[%clk 0:00:13]}  Ke5 {[%clk 0:00:02]} 43. Rh4 {[%clk 0:00:14]}  Rd8 {[%clk 0:00:01]} 44. Rxh7 {[%clk 0:00:14]}  Rd2 {[%clk 0:00:02]} 45. Rxf7 {[%clk 0:00:14]}  Rxa2 {[%clk 0:00:02]} 46. g4 {[%clk 0:00:14]}  fxg4+ {[%clk 0:00:02]} 47. Kxg4 {[%clk 0:00:15]}  Ra3 {[%clk 0:00:03]} 48. Rf5+ {[%clk 0:00:15]}  Ke6 {[%clk 0:00:03]} 49. Rf3 {[%clk 0:00:16]}  a5 {[%clk 0:00:03]} 50. h4 {[%clk 0:00:16]}  a4 {[%clk 0:00:03]} 51. bxa4 {[%clk 0:00:17]}  Rxa4+ {[%clk 0:00:04]} 52. Kg5 {[%clk 0:00:17]}  c4 {[%clk 0:00:04]} 53. h5 {[%clk 0:00:18]}  Ra5+ {[%clk 0:00:04]} 54. Kg6 {[%clk 0:00:18]}  Ra1 {[%clk 0:00:05]} 55. Rg3 {[%clk 0:00:17]}  Rh1 {[%clk 0:00:03]} 56. h6 {[%clk 0:00:17]}  Kd5 {[%clk 0:00:04]} 57. h7 {[%clk 0:00:18]}  Kd4 {[%clk 0:00:04]} 58. Kg7 {[%clk 0:00:18]}  c3 {[%clk 0:00:04]} 59. Rg6 {[%clk 0:00:18]}  Rxh7+ {[%clk 0:00:03]} 60. Kxh7 {[%clk 0:00:17]}  c2 {[%clk 0:00:04]} 61. Rc6 {[%clk 0:00:18]}  Kd3 {[%clk 0:00:04]} 62. Kg6 {[%clk 0:00:16]}  Kd2 {[%clk 0:00:05]} 63. Rxc2+ {[%clk 0:00:16]}  Kxc2 {[%clk 0:00:05]} 1/2-1/2


[Site "https://www.chess.com"]

[Event "Titled Tuesday Blitz September 27 Early 2022"]
[White "Kukula, Pawel"]
[Black "Pinero Rodriguez, Carlos Jose"]
[WhiteFideId "1115081"]
[BlackFideId "3901726"]
[WhiteElo "2062"]
[BlackElo "2053"]
[Result "1-0"]
[Round "04"]
[TimeControl "180+1"]
[Date "2022.09.27"]
[WhiteClock "0:00:47"]
[BlackClock "0:01:21"]

1. c4 {[%clk 0:03:00]}  Nf6 {[%clk 0:02:55]} 2. Nc3 {[%clk 0:03:00]}  e6 {[%clk 0:02:54]} 3. d4 {[%clk 0:02:59]}  Bb4 {[%clk 0:02:54]} 4. Qc2 {[%clk 0:02:59]}  O-O {[%clk 0:02:51]} 5. Nf3 {[%clk 0:02:57]}  c5 {[%clk 0:02:50]} 6. a3 {[%clk 0:02:55]}  Bxc3+ {[%clk 0:02:47]} 7. Qxc3 {[%clk 0:02:56]}  cxd4 {[%clk 0:02:31]} 8. Nxd4 {[%clk 0:02:54]}  d5 {[%clk 0:02:31]} 9. e3 {[%clk 0:02:47]}  Nc6 {[%clk 0:02:31]} 10. cxd5 {[%clk 0:02:42]}  Nxd4 {[%clk 0:02:28]} 11. Qxd4 {[%clk 0:02:40]}  Qxd5 {[%clk 0:02:28]} 12. Qxd5 {[%clk 0:02:40]}  Nxd5 {[%clk 0:02:29]} 13. Bd2 {[%clk 0:02:40]}  Bd7 {[%clk 0:02:29]} 14. Rc1 {[%clk 0:02:40]}  Rfc8 {[%clk 0:02:29]} 15. Bd3 {[%clk 0:02:36]}  Rxc1+ {[%clk 0:02:28]} 16. Bxc1 {[%clk 0:02:37]}  Rc8 {[%clk 0:02:28]} 17. Ke2 {[%clk 0:02:36]}  a6 {[%clk 0:02:27]} 18. Bd2 {[%clk 0:02:36]}  Bb5 {[%clk 0:02:27]} 19. e4 {[%clk 0:02:30]}  Nb6 {[%clk 0:02:25]} 20. Bxb5 {[%clk 0:02:16]}  axb5 {[%clk 0:02:23]} 21. Kd3 {[%clk 0:02:05]}  Kf8 {[%clk 0:02:21]} 22. Bc3 {[%clk 0:02:01]}  f6 {[%clk 0:02:19]} 23. Bd4 {[%clk 0:01:55]}  Nc4 {[%clk 0:02:15]} 24. Ra1 {[%clk 0:01:30]}  e5 {[%clk 0:02:13]} 25. Bc3 {[%clk 0:01:28]}  Ke7 {[%clk 0:02:06]} 26. a4 {[%clk 0:01:25]}  Ra8 {[%clk 0:02:04]} 27. b3 {[%clk 0:01:16]}  Nd6 {[%clk 0:02:04]} 28. a5 {[%clk 0:01:14]}  Ke6 {[%clk 0:02:03]} 29. Bb4 {[%clk 0:01:14]}  Rd8 {[%clk 0:01:55]} 30. Ke3 {[%clk 0:01:07]}  f5 {[%clk 0:01:49]} 31. f3 {[%clk 0:00:56]}  g6 {[%clk 0:01:28]} 32. a6 {[%clk 0:00:51]}  b6 {[%clk 0:01:21]} 33. Bxd6 {[%clk 0:00:48]}  Rxd6 {[%clk 0:01:21]} 34. a7 {[%clk 0:00:47]} 1-0


[Site "https://www.chess.com"]

[Event "Titled Tuesday Blitz September 27 Early 2022"]
[White "Kvon, Andrey"]
[Black "Murtazin, Ruslan"]
[WhiteFideId "14201356"]
[BlackFideId "24175960"]
[WhiteElo "2458"]
[BlackElo "2212"]
[Result "1-0"]
[Round "04"]
[TimeControl "180+1"]
[Date "2022.09.27"]
[WhiteClock "0:00:35"]
[BlackClock "0:00:03"]

1. d4 {[%clk 0:03:00]}  Nf6 {[%clk 0:02:59]} 2. c4 {[%clk 0:03:01]}  c5 {[%clk 0:03:00]} 3. Nf3 {[%clk 0:02:59]}  cxd4 {[%clk 0:02:59]} 4. Nxd4 {[%clk 0:03:00]}  Nc6 {[%clk 0:02:59]} 5. Nc3 {[%clk 0:02:59]}  g6 {[%clk 0:02:59]} 6. g3 {[%clk 0:02:57]}  Bg7 {[%clk 0:02:57]} 7. Nc2 {[%clk 0:02:57]}  O-O {[%clk 0:02:55]} 8. Bg2 {[%clk 0:02:57]}  d6 {[%clk 0:02:54]} 9. O-O {[%clk 0:02:57]}  Be6 {[%clk 0:02:54]} 10. Ne3 {[%clk 0:02:57]}  Nd7 {[%clk 0:02:48]} 11. Bd2 {[%clk 0:02:56]}  Rc8 {[%clk 0:02:46]} 12. Rc1 {[%clk 0:02:56]}  a6 {[%clk 0:02:46]} 13. b3 {[%clk 0:02:48]}  Nc5 {[%clk 0:02:38]} 14. Ncd5 {[%clk 0:02:41]}  b5 {[%clk 0:02:27]} 15. Bc3 {[%clk 0:02:17]}  Bxc3 {[%clk 0:02:13]} 16. Rxc3 {[%clk 0:02:18]}  bxc4 {[%clk 0:02:13]} 17. Rxc4 {[%clk 0:02:16]}  Ne5 {[%clk 0:01:45]} 18. Rh4 {[%clk 0:02:14]}  Bxd5 {[%clk 0:01:18]} 19. Nxd5 {[%clk 0:02:12]}  e6 {[%clk 0:01:15]} 20. Qd2 {[%clk 0:02:00]}  exd5 {[%clk 0:00:48]} 21. Qh6 {[%clk 0:01:58]}  Re8 {[%clk 0:00:48]} 22. f4 {[%clk 0:01:55]}  Ned7 {[%clk 0:00:19]} 23. Qxh7+ {[%clk 0:01:44]}  Kf8 {[%clk 0:00:18]} 24. f5 {[%clk 0:01:45]}  g5 {[%clk 0:00:18]} 25. f6 {[%clk 0:01:44]}  Nxf6 {[%clk 0:00:14]} 26. Qh8+ {[%clk 0:01:38]}  Ng8 {[%clk 0:00:14]} 27. Rh7 {[%clk 0:01:06]}  Re7 {[%clk 0:00:13]} 28. Qg7+ {[%clk 0:01:05]}  Ke8 {[%clk 0:00:13]} 29. Bh3 {[%clk 0:01:03]}  Ne6 {[%clk 0:00:13]} 30. Bxe6 {[%clk 0:01:02]}  fxe6 {[%clk 0:00:10]} 31. Rf8+ {[%clk 0:01:03]}  Kd7 {[%clk 0:00:10]} 32. Rxd8+ {[%clk 0:01:03]}  Rxd8 {[%clk 0:00:11]} 33. Qg6 {[%clk 0:01:02]}  Rc8 {[%clk 0:00:07]} 34. Rxe7+ {[%clk 0:01:00]}  Nxe7 {[%clk 0:00:08]} 35. Qxg5 {[%clk 0:01:01]}  Rc2 {[%clk 0:00:07]} 36. Kf1 {[%clk 0:00:49]}  d4 {[%clk 0:00:07]} 37. h4 {[%clk 0:00:49]}  Nf5 {[%clk 0:00:05]} 38. g4 {[%clk 0:00:38]}  Ng3+ {[%clk 0:00:03]} 39. Kf2 {[%clk 0:00:38]}  Nxe2 {[%clk 0:00:03]} 40. Qg7+ {[%clk 0:00:34]}  Kc6 {[%clk 0:00:03]} 41. Qg6 {[%clk 0:00:35]} 1-0


[Site "https://www.chess.com"]

[Event "Titled Tuesday Blitz September 27 Early 2022"]
[White "Lewtak, Damian"]
[Black "Pultinevicius, Paulius"]
[WhiteFideId "1141724"]
[BlackFideId "12809390"]
[WhiteElo "2329"]
[BlackElo "2472"]
[Result "0-1"]
[Round "04"]
[TimeControl "180+1"]
[Date "2022.09.27"]
[WhiteClock "0:00:07"]
[BlackClock "0:00:21"]

1. d4 {[%clk 0:03:00]}  d5 {[%clk 0:02:58]} 2. Nf3 {[%clk 0:02:59]}  e6 {[%clk 0:02:57]} 3. g3 {[%clk 0:02:59]}  Nf6 {[%clk 0:02:55]} 4. Bg2 {[%clk 0:02:59]}  b5 {[%clk 0:02:55]} 5. O-O {[%clk 0:03:00]}  Be7 {[%clk 0:02:55]} 6. a4 {[%clk 0:03:00]}  b4 {[%clk 0:02:53]} 7. c4 {[%clk 0:03:00]}  bxc3 {[%clk 0:02:53]} 8. bxc3 {[%clk 0:02:59]}  O-O {[%clk 0:02:40]} 9. c4 {[%clk 0:02:58]}  dxc4 {[%clk 0:02:24]} 10. Ne5 {[%clk 0:02:58]}  Nd5 {[%clk 0:02:24]} 11. Nxc4 {[%clk 0:02:54]}  Ba6 {[%clk 0:02:25]} 12. Qc2 {[%clk 0:02:48]}  Nc6 {[%clk 0:02:25]} 13. Rd1 {[%clk 0:02:40]}  Ncb4 {[%clk 0:02:17]} 14. Qb3 {[%clk 0:02:34]}  Rb8 {[%clk 0:02:17]} 15. Nba3 {[%clk 0:02:31]}  Nc6 {[%clk 0:01:40]} 16. Qf3 {[%clk 0:02:25]}  Rb4 {[%clk 0:01:13]} 17. Ne5 {[%clk 0:02:00]}  Nxd4 {[%clk 0:01:03]} 18. Rxd4 {[%clk 0:01:53]}  Rxd4 {[%clk 0:01:04]} 19. Bb2 {[%clk 0:01:49]}  Rxa4 {[%clk 0:01:04]} 20. Rd1 {[%clk 0:01:35]}  Qb8 {[%clk 0:01:01]} 21. Bc1 {[%clk 0:01:16]}  Bxa3 {[%clk 0:00:54]} 22. Bxa3 {[%clk 0:01:17]}  Bxe2 {[%clk 0:00:54]} 23. Qxe2 {[%clk 0:01:16]}  Rxa3 {[%clk 0:00:54]} 24. Nd7 {[%clk 0:01:15]}  Nc3 {[%clk 0:00:51]} 25. Qd3 {[%clk 0:00:44]}  Qb5 {[%clk 0:00:23]} 26. Qd2 {[%clk 0:00:20]}  Nxd1 {[%clk 0:00:21]} 27. Nxf8 {[%clk 0:00:18]}  Ra1 {[%clk 0:00:21]} 28. h4 {[%clk 0:00:13]}  Ne3+ {[%clk 0:00:22]} 29. Kh2 {[%clk 0:00:12]}  Nf1+ {[%clk 0:00:22]} 30. Kh3 {[%clk 0:00:07]}  Nxd2 {[%clk 0:00:21]} 0-1


[Site "https://www.chess.com"]